[Event "LAT-ch 2020"]
[Site "Riga"]
[Date "2020.08.25"]
[Round "3.2"]
[White "Starostits, Ilmars"]
[Black "Semjonovs, Ilja"]
[Result "1/2-1/2"]
[ECO "A48"]
[WhiteElo "2484"]
[BlackElo "2368"]
[Annotator "ChessBase"]
[PlyCount "47"]
[EventDate "2020.08.24"]
[EventType "swiss"]
[EventCountry "LAT"]
[SourceTitle "playchess.com"]
[Source "ChessBase"]
[SourceQuality "1"]
[TimeControl "5400+30"]

1. d4 {[%emt 0:00:00]} Nf6 {[%emt 0:01:38]} 2. Nf3 {[%emt 0:00:00]} g6 {[%emt 0:03:38]} 3. Bf4 {[%emt 0:00:00]} Bg7 {[%emt 0:00:07]} 4. e3 {[%emt 0:00:00]} O-O {[%emt 0:01:31]} 5. Be2 {[%emt 0:00:14]} d6 {[%emt 0:03:21]} 6. h3 {[%emt 0:00:07]} c5 {[%emt 0:01:37]} 7. c3 {[%emt 0:00:21]} b6 {[%emt 0:00:49]} 8. O-O {[%emt 0:00:08]} Bb7 {[%emt 0:00:05]} 9. Nbd2 {[%emt 0:00:26]} Nbd7 {[%emt 0:01:05]} 10. a4 {[%emt 0:00:32]} a6 {[%emt 0:00:54]} 11. Bh2 {[%emt 0:00:18]} Bc6 {[%emt 0:10:30]} 12. Qb3 {[%emt 0:01:13]} b5 {[%emt 0:10:32]} 13. axb5 {[%emt 0:01:27]} axb5 {[%emt 0:01:41]} 14. dxc5 {[%emt 0:15:09]} Nxc5 {[%emt 0:01:04]} 15. Qc2 {[%emt 0:00:05]} Qb6 {[%emt 0:01:43]} 16. Nd4 {[%emt 0:00:38]} Bd7 {[%emt 0:01:00]} 17. Bf3 {[%emt 0:02:19]} Rxa1 {[%emt 0:02:24]} 18. Rxa1 {[%emt 0:00:04]} Rc8 {[%emt 0:02:22]} 19. Bg3 {[%emt 0:03:03]} e5 {[%emt 0:02:50]} 20. N4b3 {[%emt 0:00:19]} Be6 {[%emt 0:02:35]} 21. Nxc5 {[%emt 0:00:27]} Qxc5 {[%emt 0:00:21]} 22. Bh4 {[%emt 0:00:56]} d5 {[%emt 0:02:49]} 23. Nb3 {[%emt 0:15:04]} Qc6 {[%emt 0:27:36]} 24. Qd1 {[%emt 0:01:49]} 1/2-1/2

[Event "LAT-ch 2020"]
[Site "Riga"]
[Date "2020.08.25"]
[Round "3.3"]
[White "Berzinsh, Roland"]
[Black "Jazdanovs, Aleksandrs"]
[Result "1-0"]
[ECO "D00"]
[WhiteElo "2378"]
[BlackElo "2248"]
[Annotator "ChessBase"]
[PlyCount "61"]
[EventDate "2020.08.24"]
[EventType "swiss"]
[EventCountry "LAT"]
[SourceTitle "playchess.com"]
[Source "ChessBase"]
[SourceQuality "1"]
[TimeControl "5400+30"]

1. d4 {[%emt 0:00:45]} Nf6 {[%emt 0:01:45]} 2. Bf4 {[%emt 0:00:09]} c5 {[%emt 0:00:16]} 3. e3 {[%emt 0:00:07]} d5 {[%emt 0:00:16]} 4. c3 {[%emt 0:02:14]} Nc6 {[%emt 0:00:51]} 5. Nd2 {[%emt 0:00:07]} Bf5 {[%emt 0:09:49]} 6. Qb3 {[%emt 0:00:39]} Qb6 {[%emt 0:05:19]} 7. dxc5 {[%emt 0:02:06]} Qxb3 {[%emt 0:02:43]} 8. axb3 {[%emt 0:00:16]} e5 {[%emt 0:00:40]} 9. Bg3 {[%emt 0:00:09]} Bxc5 {[%emt 0:00:53]} 10. Ngf3 {[%emt 0:04:47]} Nd7 {[%emt 0:03:41]} 11. b4 {[%emt 0:02:10]} Bd6 {[%emt 0:00:09]} 12. Bb5 {[%emt 0:04:15]} f6 {[%emt 0:09:43]} 13. Bxc6 {[%emt 0:03:21]} bxc6 {[%emt 0:00:13]} 14. Nd4 {[%emt 0:00:02]} exd4 {[%emt 0:00:23]} 15. Bxd6 {[%emt 0:00:07]} dxe3 {[%emt 0:00:34]} 16. fxe3 {[%emt 0:00:15]} Kf7 {[%emt 0:15:44]} 17. Nf3 {[%emt 0:06:07]} Nb6 {[%emt 0:03:46]} 18. b3 {[%emt 0:05:00]} Rhd8 {[%emt 0:07:46]} 19. Bc5 {[%emt 0:06:25]} Nd7 {[%emt 0:03:43]} 20. Nd4 {[%emt 0:15:58]} Nxc5 {[%emt 0:07:22]} 21. bxc5 {[%emt 0:00:09]} Bd7 {[%emt 0:00:05]} 22. Ra6 {[%emt 0:00:13]} Rdc8 {[%emt 0:00:06]} 23. Kd2 {[%emt 0:00:39]} Rc7 {[%emt 0:00:08]} 24. Rha1 {[%emt 0:00:09]} Ke7 {[%emt 0:04:08]} 25. b4 {[%emt 0:00:13]} g6 {[%emt 0:06:33]} 26. R1a5 {[%emt 0:12:54]} Kf7 {[%emt 0:05:12]} 27. b5 {[%emt 0:06:19]} cxb5 {[%emt 0:00:05]} 28. c6 {[%emt 0:00:03]} Bc8 {[%emt 0:04:04]} 29. Nxb5 {[%emt 0:00:23]} Re7 {[%emt 0:00:39]} 30. Rxa7 {[%emt 0:00:44]} Raxa7 {[%emt 0:00:05]} 31. Rxa7 {[%emt 0:00:21]} 1-0

[Event "LAT-ch 2020"]
[Site "Riga"]
[Date "2020.08.25"]
[Round "3.4"]
[White "Mustaps, Matiss"]
[Black "Bekasovs, Rihards"]
[Result "1/2-1/2"]
[ECO "B11"]
[WhiteElo "2363"]
[BlackElo "2177"]
[Annotator "ChessBase"]
[PlyCount "39"]
[EventDate "2020.08.24"]
[EventType "swiss"]
[EventCountry "LAT"]
[SourceTitle "playchess.com"]
[Source "ChessBase"]
[SourceQuality "1"]
[TimeControl "5400+30"]

1. e4 {[%emt 0:00:00]} c6 {[%emt 0:00:00]} 2. Nc3 {[%emt 0:00:00]} d5 {[%emt 0:00:21]} 3. Qf3 {[%emt 0:00:00]} dxe4 {[%emt 0:21:18]} 4. Nxe4 {[%emt 0:00:00]} Nf6 {[%emt 0:00:06]} 5. Nxf6+ {[%emt 0:00:00]} exf6 {[%emt 0:00:51]} 6. Bc4 {[%emt 0:00:01]} Bd6 {[%emt 0:00:47]} 7. d3 {[%emt 0:00:03]} O-O {[%emt 0:00:40]} 8. Be3 {[%emt 0:00:40]} Nd7 {[%emt 0:01:07]} 9. Bb3 {[%emt 0:09:08]} a5 {[%emt 0:01:23]} 10. a4 {[%emt 0:01:49]} Ne5 {[%emt 0:08:40]} 11. Qe2 {[%emt 0:00:21]} Re8 {[%emt 0:05:10]} 12. O-O-O {[%emt 0:04:55]} b5 {[%emt 0:02:01]} 13. Nf3 {[%emt 0:09:47]} Be6 {[%emt 0:17:00]} 14. Bxe6 {[%emt 0:02:48]} fxe6 {[%emt 0:02:11]} 15. Nxe5 {[%emt 0:07:36]} Bxe5 {[%emt 0:00:09]} 16. axb5 {[%emt 0:03:01]} cxb5 {[%emt 0:00:12]} 17. d4 {[%emt 0:00:13]} Bd6 {[%emt 0:00:20]} 18. Qxb5 {[%emt 0:05:22]} Rb8 {[%emt 0:05:49]} 19. Qc4 {[%emt 0:08:07]} Qe7 {[%emt 0:01:25]} 20. c3 {[%emt 0:03:11]} 1/2-1/2

[Event "LAT-ch 2020"]
[Site "Riga"]
[Date "2020.08.26"]
[Round "4.1"]
[White "Berzinsh, Roland"]
[Black "Kantans, Toms"]
[Result "1/2-1/2"]
[ECO "B07"]
[WhiteElo "2378"]
[BlackElo "2499"]
[Annotator "ChessBase"]
[PlyCount "79"]
[EventDate "2020.08.24"]
[EventType "swiss"]
[EventCountry "LAT"]
[SourceTitle "playchess.com"]
[Source "ChessBase"]
[SourceQuality "1"]
[TimeControl "5400+30"]

1. d4 {[%emt 0:00:00]} Nf6 {[%emt 0:03:35]} 2. Nf3 {[%emt 0:00:00]} g6 {[%emt 0:00:43]} 3. Nbd2 {[%emt 0:00:00]} Bg7 {[%emt 0:02:13]} 4. e4 {[%emt 0:00:08]} d6 {[%emt 0:00:19]} 5. Bd3 {[%emt 0:00:37]} O-O {[%emt 0:01:13]} 6. O-O {[%emt 0:00:06]} c5 {[%emt 0:03:39]} 7. c3 {[%emt 0:02:44]} cxd4 {[%emt 0:07:02]} 8. cxd4 {[%emt 0:02:19]} Nc6 {[%emt 0:00:06]} 9. h3 {[%emt 0:18:27]} Nh5 {[%emt 0:10:12]} 10. Nb3 {[%emt 0:06:02]} a5 {[%emt 0:06:12]} 11. Be3 {[%emt 0:01:19]} a4 {[%emt 0:03:04]} 12. Nbd2 {[%emt 0:00:36]} d5 {[%emt 0:12:31]} 13. Bc2 {[%emt 0:13:48]} dxe4 {[%emt 0:08:40]} 14. Nxe4 {[%emt 0:02:24]} Bf5 {[%emt 0:00:59]} 15. a3 {[%emt 0:01:02]} Na5 {[%emt 0:04:27]} 16. Nc3 {[%emt 0:07:14]} Bxc2 {[%emt 0:01:16]} 17. Qxc2 {[%emt 0:00:05]} Nb3 {[%emt 0:00:21]} 18. Rad1 {[%emt 0:00:12]} Qc7 {[%emt 0:01:55]} 19. d5 {[%emt 0:05:43]} Rfc8 {[%emt 0:03:27]} 20. Nd4 {[%emt 0:00:54]} Qc4 {[%emt 0:00:43]} 21. Qe4 {[%emt 0:12:20]} Nc5 {[%emt 0:04:05]} 22. Qb1 {[%emt 0:08:54]} Nf4 {[%emt 0:02:16]} 23. Bxf4 {[%emt 0:03:10]} Bxd4 {[%emt 0:00:06]} 24. Bg5 {[%emt 0:00:43]} f6 {[%emt 0:02:32]} 25. Be3 {[%emt 0:02:35]} Be5 {[%emt 0:02:09]} 26. Rfe1 {[%emt 0:04:04]} Rd8 {[%emt 0:03:24]} 27. Bxc5 {[%emt 0:02:43]} Qxc5 {[%emt 0:00:02]} 28. Re4 {[%emt 0:00:16]} b5 {[%emt 0:00:53]} 29. Qd3 {[%emt 0:00:45]} Rab8 {[%emt 0:02:54]} 30. Rb4 {[%emt 0:00:52]} Bxc3 {[%emt 0:06:52]} 31. bxc3 {[%emt 0:00:04]} Rb6 {[%emt 0:02:11]} 32. c4 {[%emt 0:00:13]} bxc4 {[%emt 0:00:48]} 33. Rxc4 {[%emt 0:00:08]} Qb5 {[%emt 0:00:42]} 34. Qe4 {[%emt 0:02:08]} Rbd6 {[%emt 0:04:24]} 35. Rxa4 {[%emt 0:01:51]} f5 {[%emt 0:00:50]} 36. Rb4 {[%emt 0:00:08]} fxe4 {[%emt 0:00:40]} 37. Rxb5 {[%emt 0:00:04]} e6 {[%emt 0:00:08]} 38. a4 {[%emt 0:02:52]} exd5 {[%emt 0:00:22]} 39. a5 {[%emt 0:00:04]} Kf7 {[%emt 0:00:48]} 40. a6 {[%emt 0:00:20]} 1/2-1/2

[Event "LAT-ch 2020"]
[Site "Riga"]
[Date "2020.08.26"]
[Round "4.2"]
[White "Semjonovs, Ilja"]
[Black "Kretainis, Kristaps"]
[Result "1-0"]
[ECO "C64"]
[WhiteElo "2368"]
[BlackElo "2252"]
[Annotator "ChessBase"]
[PlyCount "91"]
[EventDate "2020.08.24"]
[EventType "swiss"]
[EventCountry "LAT"]
[SourceTitle "playchess.com"]
[Source "ChessBase"]
[SourceQuality "1"]
[TimeControl "5400+30"]

1. e4 {[%emt 0:03:15]} e5 {[%emt 0:00:00]} 2. Nf3 {[%emt 0:00:10]} Nc6 {[%emt 0:00:00]} 3. Bb5 {[%emt 0:00:05]} Bc5 {[%emt 0:00:00]} 4. O-O {[%emt 0:12:56]} Nd4 {[%emt 0:00:27]} 5. Nxd4 {[%emt 0:01:48]} Bxd4 {[%emt 0:00:11]} 6. c3 {[%emt 0:01:04]} Bb6 {[%emt 0:00:03]} 7. d4 {[%emt 0:00:13]} c6 {[%emt 0:00:03]} 8. Ba4 {[%emt 0:02:20]} d6 {[%emt 0:00:03]} 9. h3 {[%emt 0:02:56]} Nf6 {[%emt 0:00:04]} 10. Bc2 {[%emt 0:00:31]} O-O {[%emt 0:00:50]} 11. Be3 {[%emt 0:00:47]} Re8 {[%emt 0:01:27]} 12. Nd2 {[%emt 0:03:47]} d5 {[%emt 0:09:09]} 13. dxe5 {[%emt 0:06:28]} Rxe5 {[%emt 0:00:03]} 14. Bd4 {[%emt 0:15:43]} Re8 {[%emt 0:02:05]} 15. e5 {[%emt 0:02:23]} c5 {[%emt 0:02:57]} 16. exf6 {[%emt 0:00:23]} cxd4 {[%emt 0:00:01]} 17. fxg7 {[%emt 0:00:08]} Qf6 {[%emt 0:00:35]} 18. Qh5 {[%emt 0:03:12]} Qxg7 {[%emt 0:00:54]} 19. Nf3 {[%emt 0:00:07]} dxc3 {[%emt 0:04:11]} 20. bxc3 {[%emt 0:00:21]} h6 {[%emt 0:01:08]} 21. Bb3 {[%emt 0:02:12]} Be6 {[%emt 0:04:46]} 22. Bxd5 {[%emt 0:04:06]} Bxd5 {[%emt 0:00:25]} 23. Qxd5 {[%emt 0:00:06]} Qxc3 {[%emt 0:00:03]} 24. Qxb7 {[%emt 0:02:31]} Qb2 {[%emt 0:00:03]} 25. Rab1 {[%emt 0:02:05]} Qxa2 {[%emt 0:02:17]} 26. Rb4 {[%emt 0:00:40]} Qe6 {[%emt 0:03:02]} 27. Rg4+ {[%emt 0:01:36]} Kf8 {[%emt 0:00:01]} 28. Nd2 {[%emt 0:13:58]} Rad8 {[%emt 0:07:43]} 29. Nc4 {[%emt 0:02:35]} Bd4 {[%emt 0:13:12]} 30. Qb4+ {[%emt 0:04:43]} Qe7 {[%emt 0:00:04]} 31. Qd2 {[%emt 0:01:49]} Bg7 {[%emt 0:04:18]} 32. Qc2 {[%emt 0:00:22]} h5 {[%emt 0:00:14]} 33. Rg3 {[%emt 0:01:59]} Qe4 {[%emt 0:07:35]} 34. Qb3 {[%emt 0:00:52]} Re6 {[%emt 0:01:59]} 35. Qa3+ {[%emt 0:01:12]} Kg8 {[%emt 0:00:06]} 36. Ne3 {[%emt 0:00:06]} Ra8 {[%emt 0:11:07]} 37. Qc5 {[%emt 0:03:03]} Rg6 {[%emt 0:00:44]} 38. Nf5 {[%emt 0:01:07]} Rxg3 {[%emt 0:00:23]} 39. fxg3 {[%emt 0:00:32]} Bf8 {[%emt 0:02:03]} 40. Qc1 {[%emt 0:02:01]} Qe6 {[%emt 0:00:39]} 41. g4 {[%emt 0:00:43]} hxg4 {[%emt 0:05:42]} 42. Rf4 {[%emt 0:00:18]} Bd6 {[%emt 0:01:54]} 43. Rxg4+ {[%emt 0:01:27]} Kf8 {[%emt 0:00:07]} 44. Nxd6 {[%emt 0:01:29]} Qxd6 {[%emt 0:00:03]} 45. Qa1 {[%emt 0:00:23]} Rb8 {[%emt 0:01:40]} 46. Qg7+ {[%emt 0:00:18]} 1-0

[Event "LAT-ch 2020"]
[Site "Riga"]
[Date "2020.08.26"]
[Round "4.3"]
[White "Bekasovs, Rihards"]
[Black "Starostits, Ilmars"]
[Result "0-1"]
[ECO "A27"]
[WhiteElo "2177"]
[BlackElo "2484"]
[Annotator "ChessBase"]
[PlyCount "76"]
[EventDate "2020.08.24"]
[EventType "swiss"]
[EventCountry "LAT"]
[SourceTitle "playchess.com"]
[Source "ChessBase"]
[SourceQuality "1"]
[TimeControl "5400+30"]

1. c4 {[%emt 0:00:00]} e5 {[%emt 0:00:00]} 2. Nc3 {[%emt 0:00:03]} Nc6 {[%emt 0:00:00]} 3. Nf3 {[%emt 0:00:25]} Bc5 {[%emt 0:02:32]} 4. e3 {[%emt 0:06:21]} d6 {[%emt 0:04:15]} 5. d4 {[%emt 0:07:31]} Bb6 {[%emt 0:00:10]} 6. Be2 {[%emt 0:11:37]} Bg4 {[%emt 0:08:32]} 7. h3 {[%emt 0:02:05]} Bxf3 {[%emt 0:01:05]} 8. Bxf3 {[%emt 0:00:16]} exd4 {[%emt 0:00:54]} 9. Bxc6+ {[%emt 0:01:09]} bxc6 {[%emt 0:00:05]} 10. exd4 {[%emt 0:00:04]} Qf6 {[%emt 0:10:46]} 11. Be3 {[%emt 0:02:08]} Ba5 {[%emt 0:01:25]} 12. Rc1 {[%emt 0:06:17]} Ne7 {[%emt 0:01:12]} 13. O-O {[%emt 0:04:49]} Bxc3 {[%emt 0:01:10]} 14. Rxc3 {[%emt 0:00:18]} O-O {[%emt 0:00:06]} 15. Re1 {[%emt 0:21:15]} Rfe8 {[%emt 0:03:04]} 16. Bc1 {[%emt 0:10:20]} Nf5 {[%emt 0:01:18]} 17. Rxe8+ {[%emt 0:02:29]} Rxe8 {[%emt 0:00:05]} 18. Be3 {[%emt 0:00:01]} Re4 {[%emt 0:07:05]} 19. Qf3 {[%emt 0:06:12]} Qe6 {[%emt 0:00:39]} 20. d5 {[%emt 0:00:39]} Qe5 {[%emt 0:00:34]} 21. dxc6 {[%emt 0:02:08]} Nd4 {[%emt 0:11:58]} 22. Qd1 {[%emt 0:00:31]} h5 {[%emt 0:01:48]} 23. Rd3 {[%emt 0:04:36]} Nxc6 {[%emt 0:01:56]} 24. b3 {[%emt 0:00:13]} g6 {[%emt 0:06:05]} 25. Rd5 {[%emt 0:01:38]} Qe6 {[%emt 0:03:13]} 26. Kh2 {[%emt 0:06:43]} a6 {[%emt 0:06:57]} 27. Qf3 {[%emt 0:02:22]} Ne7 {[%emt 0:01:09]} 28. Rd3 {[%emt 0:00:54]} Nf5 {[%emt 0:00:21]} 29. g3 {[%emt 0:00:51]} a5 {[%emt 0:02:39]} 30. Kg2 {[%emt 0:00:31]} a4 {[%emt 0:00:07]} 31. c5 {[%emt 0:00:28]} axb3 {[%emt 0:01:12]} 32. cxd6 {[%emt 0:00:33]} bxa2 {[%emt 0:03:17]} 33. d7 {[%emt 0:00:31]} a1=Q {[%emt 0:02:09]} 34. d8=Q+ {[%emt 0:00:09]} Kh7 {[%emt 0:00:07]} 35. Qxc7 {[%emt 0:00:43]} Rxe3 {[%emt 0:02:47]} 36. Rxe3 {[%emt 0:00:25]} Nxe3+ {[%emt 0:00:21]} 37. Qxe3 {[%emt 0:00:25]} Qxh3+ {[%emt 0:00:24]} 38. Kf3 {[%emt 0:00:41]} Qhh1+ {[%emt 0:00:08]} 0-1

[Event "LAT-ch 2020"]
[Site "Riga"]
[Date "2020.08.26"]
[Round "4.4"]
[White "Dzjuba, Vsevolod"]
[Black "Sveshnikov, Vladimir"]
[Result "0-1"]
[ECO "B19"]
[WhiteElo "2142"]
[BlackElo "2426"]
[Annotator "ChessBase"]
[PlyCount "58"]
[EventDate "2020.08.24"]
[EventType "swiss"]
[EventCountry "LAT"]
[SourceTitle "playchess.com"]
[Source "ChessBase"]
[SourceQuality "1"]
[TimeControl "5400+30"]

1. e4 {[%emt 0:00:00]} c6 {[%emt 0:02:09]} 2. d4 {[%emt 0:00:14]} d5 {[%emt 0:00:16]} 3. Nc3 {[%emt 0:00:21]} dxe4 {[%emt 0:00:02]} 4. Nxe4 {[%emt 0:00:14]} Bf5 {[%emt 0:00:02]} 5. Ng3 {[%emt 0:00:10]} Bg6 {[%emt 0:00:02]} 6. h4 {[%emt 0:00:39]} h6 {[%emt 0:00:02]} 7. Nf3 {[%emt 0:00:15]} Nd7 {[%emt 0:00:04]} 8. h5 {[%emt 0:00:13]} Bh7 {[%emt 0:00:02]} 9. Bd3 {[%emt 0:00:11]} Bxd3 {[%emt 0:00:02]} 10. Qxd3 {[%emt 0:00:12]} e6 {[%emt 0:00:14]} 11. Bf4 {[%emt 0:00:22]} Qa5+ {[%emt 0:00:01]} 12. Bd2 {[%emt 0:00:15]} Bb4 {[%emt 0:00:03]} 13. c3 {[%emt 0:00:30]} Be7 {[%emt 0:00:09]} 14. c4 {[%emt 0:00:23]} Qc7 {[%emt 0:00:02]} 15. O-O-O {[%emt 0:23:38]} Ngf6 {[%emt 0:00:24]} 16. Kb1 {[%emt 0:02:23]} O-O {[%emt 0:05:14]} 17. Ne4 {[%emt 0:11:34]} Rad8 {[%emt 0:07:48]} 18. Nxf6+ {[%emt 0:15:53]} Nxf6 {[%emt 0:17:08]} 19. Qc2 {[%emt 0:00:41]} Ng4 {[%emt 0:03:39]} 20. Bc3 {[%emt 0:03:58]} b5 {[%emt 0:00:56]} 21. Be1 {[%emt 0:05:11]} bxc4 {[%emt 0:03:20]} 22. Qxc4 {[%emt 0:00:24]} Rd5 {[%emt 0:02:04]} 23. Rc1 {[%emt 0:02:03]} c5 {[%emt 0:21:57]} 24. Bb4 {[%emt 0:10:42]} Nxf2 {[%emt 0:02:53]} 25. Rhf1 {[%emt 0:02:44]} Qb7 {[%emt 0:08:30]} 26. dxc5 {[%emt 0:02:55]} Nd3 {[%emt 0:00:26]} 27. Ba3 {[%emt 0:03:08]} Bxc5 {[%emt 0:00:35]} 28. Rc3 {[%emt 0:00:58]} Bxa3 {[%emt 0:00:08]} 29. Rb3 {[%emt 0:00:06]} Nxb2 {[%emt 0:02:49]} 0-1

[Event "LAT-ch 2020"]
[Site "Riga"]
[Date "2020.08.27"]
[Round "5.1"]
[White "Kantans, Toms"]
[Black "Semjonovs, Ilja"]
[Result "0-1"]
[ECO "B51"]
[WhiteElo "2499"]
[BlackElo "2368"]
[Annotator "ChessBase"]
[PlyCount "124"]
[EventDate "2020.08.24"]
[EventType "swiss"]
[EventCountry "LAT"]
[SourceTitle "playchess.com"]
[Source "ChessBase"]
[SourceQuality "1"]
[TimeControl "5400+30"]

1. e4 {[%emt 0:10:18]} c5 {[%emt 0:00:00]} 2. Nf3 {[%emt 0:00:05]} d6 {[%emt 0:00:00]} 3. Bb5+ {[%emt 0:00:14]} Nd7 {[%emt 0:00:26]} 4. O-O {[%emt 0:00:21]} Ngf6 {[%emt 0:01:36]} 5. Re1 {[%emt 0:00:07]} a6 {[%emt 0:00:16]} 6. Bd3 {[%emt 0:00:25]} e6 {[%emt 0:05:30]} 7. c3 {[%emt 0:00:15]} b5 {[%emt 0:00:47]} 8. a4 {[%emt 0:00:36]} c4 {[%emt 0:09:06]} 9. Bf1 {[%emt 0:01:15]} Bb7 {[%emt 0:01:04]} 10. d3 {[%emt 0:00:13]} cxd3 {[%emt 0:03:00]} 11. Bxd3 {[%emt 0:00:34]} Be7 {[%emt 0:01:04]} 12. axb5 {[%emt 0:09:01]} axb5 {[%emt 0:01:36]} 13. Rxa8 {[%emt 0:08:05]} Qxa8 {[%emt 0:11:23]} 14. Na3 {[%emt 0:02:36]} Bxe4 {[%emt 0:11:40]} 15. Nxb5 {[%emt 0:04:19]} O-O {[%emt 0:03:35]} 16. b4 {[%emt 0:09:04]} Bxd3 {[%emt 0:02:09]} 17. Qxd3 {[%emt 0:00:05]} Qa6 {[%emt 0:02:00]} 18. Nfd4 {[%emt 0:12:15]} Rb8 {[%emt 0:14:04]} 19. Bb2 {[%emt 0:05:34]} d5 {[%emt 0:14:46]} 20. Ra1 {[%emt 0:09:37]} Qb6 {[%emt 0:00:18]} 21. Na7 {[%emt 0:05:27]} Ra8 {[%emt 0:02:53]} 22. Ra6 {[%emt 0:06:35]} Qb7 {[%emt 0:02:26]} 23. Ndc6 {[%emt 0:00:12]} Bf8 {[%emt 0:01:07]} 24. Na5 {[%emt 0:01:48]} Qc7 {[%emt 0:01:42]} 25. Nb5 {[%emt 0:02:15]} Qc8 {[%emt 0:02:24]} 26. Rxa8 {[%emt 0:02:44]} Qxa8 {[%emt 0:00:03]} 27. Nd4 {[%emt 0:00:50]} Ne4 {[%emt 0:03:36]} 28. Ndc6 {[%emt 0:01:26]} Nd6 {[%emt 0:00:21]} 29. Bc1 {[%emt 0:01:15]} Nc4 {[%emt 0:01:50]} 30. Be3 {[%emt 0:02:57]} Nxa5 {[%emt 0:02:46]} 31. Nxa5 {[%emt 0:00:02]} e5 {[%emt 0:00:17]} 32. Qb5 {[%emt 0:01:24]} d4 {[%emt 0:01:01]} 33. Qxd7 {[%emt 0:01:23]} Qe4 {[%emt 0:00:01]} 34. g3 {[%emt 0:02:31]} dxe3 {[%emt 0:00:03]} 35. Qd1 {[%emt 0:00:29]} e2 {[%emt 0:00:54]} 36. Qe1 {[%emt 0:00:01]} Qd3 {[%emt 0:00:11]} 37. f3 {[%emt 0:00:04]} Qxf3 {[%emt 0:00:16]} 38. Nb3 {[%emt 0:01:58]} g6 {[%emt 0:00:59]} 39. Nd2 {[%emt 0:00:31]} Qe3+ {[%emt 0:00:23]} 40. Kg2 {[%emt 0:00:05]} Qxc3 {[%emt 0:00:04]} 41. Qxe2 {[%emt 0:00:07]} Qb2 {[%emt 0:00:25]} 42. Kf3 {[%emt 0:00:16]} Bxb4 {[%emt 0:00:05]} 43. Nc4 {[%emt 0:00:10]} Qxe2+ 44. Kxe2 {[%emt 0:00:01]} f6 {[%emt 0:00:25]} 45. g4 {[%emt 0:00:03]} h6 {[%emt 0:02:22]} 46. h4 {[%emt 0:00:14]} Bc3 {[%emt 0:00:59]} 47. Kd3 {[%emt 0:01:10]} Bd4 {[%emt 0:00:42]} 48. Ke4 {[%emt 0:02:20]} Kf7 {[%emt 0:00:26]} 49. Kd5 {[%emt 0:00:04]} f5 {[%emt 0:00:40]} 50. Nd6+ {[%emt 0:01:08]} Kf6 {[%emt 0:00:18]} 51. gxf5 {[%emt 0:00:30]} gxf5 {[%emt 0:00:05]} 52. Nc4 {[%emt 0:00:16]} Bc3 {[%emt 0:00:49]} 53. Ne3 {[%emt 0:00:15]} e4 {[%emt 0:00:16]} 54. Nc2 {[%emt 0:00:58]} Bb2 {[%emt 0:00:50]} 55. Ne3 {[%emt 0:00:07]} Bc1 {[%emt 0:00:24]} 56. Nc2 {[%emt 0:00:23]} Bf4 {[%emt 0:00:08]} 57. Nd4 {[%emt 0:00:11]} Bg3 {[%emt 0:00:17]} 58. h5 {[%emt 0:00:03]} Kg5 {[%emt 0:00:25]} 59. Ne2 {[%emt 0:00:41]} Bh2 {[%emt 0:00:16]} 60. Nd4 {[%emt 0:00:47]} Bg3 {[%emt 0:00:44]} 61. Ne2 {[%emt 0:00:03]} Bb8 {[%emt 0:00:16]} 62. Nd4 {[%emt 0:00:36]} Kg4 {[%emt 0:00:09]} 0-1

[Event "LAT-ch 2020"]
[Site "Riga"]
[Date "2020.08.27"]
[Round "5.2"]
[White "Starostits, Ilmars"]
[Black "Lanka, Zigurds"]
[Result "0-1"]
[ECO "A48"]
[WhiteElo "2484"]
[BlackElo "2391"]
[Annotator "ChessBase"]
[PlyCount "92"]
[EventDate "2020.08.24"]
[EventType "swiss"]
[EventCountry "LAT"]
[SourceTitle "playchess.com"]
[Source "ChessBase"]
[SourceQuality "1"]
[TimeControl "5400+30"]

1. d4 {[%emt 0:00:00]} Nf6 {[%emt 0:00:00]} 2. Nf3 {[%emt 0:00:00]} g6 {[%emt 0:00:00]} 3. Bf4 {[%emt 0:00:00]} Bg7 {[%emt 0:00:20]} 4. e3 {[%emt 0:00:00]} d6 {[%emt 0:00:39]} 5. h3 {[%emt 0:00:08]} O-O {[%emt 0:00:28]} 6. Be2 {[%emt 0:00:03]} Nfd7 {[%emt 0:00:18]} 7. Nbd2 {[%emt 0:05:31]} e5 {[%emt 0:01:41]} 8. Bh2 {[%emt 0:00:08]} Nc6 {[%emt 0:00:11]} 9. c3 {[%emt 0:00:08]} h6 {[%emt 0:01:04]} 10. O-O {[%emt 0:00:12]} f5 {[%emt 0:00:43]} 11. b4 {[%emt 0:00:27]} e4 {[%emt 0:02:16]} 12. Ne1 {[%emt 0:00:07]} Nf6 {[%emt 0:00:50]} 13. b5 {[%emt 0:02:38]} Ne7 {[%emt 0:00:24]} 14. Qb3+ {[%emt 0:00:15]} Kh8 {[%emt 0:00:51]} 15. Nc2 {[%emt 0:00:24]} g5 {[%emt 0:00:34]} 16. f3 {[%emt 0:06:29]} exf3 {[%emt 0:01:19]} 17. Bxf3 {[%emt 0:00:30]} Ng6 {[%emt 0:01:13]} 18. Be2 {[%emt 0:02:20]} Qe7 {[%emt 0:06:16]} 19. Bd3 {[%emt 0:01:09]} g4 {[%emt 0:02:20]} 20. Bxf5 {[%emt 0:02:56]} Bxf5 {[%emt 0:00:44]} 21. Rxf5 {[%emt 0:00:04]} gxh3 {[%emt 0:09:20]} 22. gxh3 {[%emt 0:00:40]} Ne4 {[%emt 0:03:48]} 23. Rxf8+ {[%emt 0:03:38]} Rxf8 {[%emt 0:00:16]} 24. Nxe4 {[%emt 0:00:03]} Qxe4 {[%emt 0:00:17]} 25. Rf1 {[%emt 0:01:08]} Rxf1+ {[%emt 0:08:21]} 26. Kxf1 {[%emt 0:00:04]} Qf3+ {[%emt 0:00:18]} 27. Kg1 {[%emt 0:00:28]} Nh4 {[%emt 0:00:46]} 28. Ne1 {[%emt 0:00:07]} Qxe3+ {[%emt 0:00:49]} 29. Kf1 {[%emt 0:00:04]} Qxh3+ {[%emt 0:01:06]} 30. Kg1 {[%emt 0:00:04]} Qg4+ {[%emt 0:02:38]} 31. Kf2 {[%emt 0:01:47]} Qf5+ {[%emt 0:00:25]} 32. Ke2 {[%emt 0:03:25]} Qh3 {[%emt 0:02:05]} 33. Bg1 {[%emt 0:02:25]} Qg4+ {[%emt 0:00:18]} 34. Kf1 {[%emt 0:00:44]} Qf4+ {[%emt 0:02:46]} 35. Bf2 {[%emt 0:02:14]} Nf5 {[%emt 0:00:06]} 36. Qe6 {[%emt 0:01:36]} Ng3+ {[%emt 0:00:43]} 37. Kg1 {[%emt 0:00:21]} Ne4 {[%emt 0:01:26]} 38. Nd3 {[%emt 0:01:49]} Qf3 {[%emt 0:00:30]} 39. Bh4 {[%emt 0:00:32]} Nxc3 {[%emt 0:01:35]} 40. Nf2 {[%emt 0:00:18]} Ne2+ {[%emt 0:01:33]} 41. Kf1 {[%emt 0:00:44]} Nxd4 {[%emt 0:00:22]} 42. Qc8+ {[%emt 0:00:04]} Kh7 {[%emt 0:00:31]} 43. Qxc7 {[%emt 0:00:05]} Qe2+ {[%emt 0:08:45]} 44. Kg2 {[%emt 0:00:10]} Qh5 {[%emt 0:00:38]} 45. b6 {[%emt 0:03:21]} axb6 {[%emt 0:01:58]} 46. Bg3 {[%emt 0:01:52]} Qf3+ {[%emt 0:00:26]} 0-1